fUST/lending_fUST_20250901
["ID","MTS","AMOUNT","RATE_DAILY","PERIOD"]
[382711836,1756717040832,2705.76,0.00013698,2]
[382711837,1756717041147,480.0,0.00013698,2]
[382711838,1756717041180,1172.96,0.00013698,2]
[382711839,1756717041888,480.0,0.00013698,2]
[382711840,1756717042119,480.0,0.00013698,2]
[382711841,1756717046624,480.0,0.00013698,2]
[382711842,1756717048149,480.0,0.00013698,2]
[382711843,1756717048829,480.0,0.00013698,2]
[382711844,1756717050340,726.05,0.00013698,2]
[382711845,1756717052065,412.24149427,0.00013698,2]
[382711846,1756717056475,1045.54840726,0.00013698,2]
[382711847,1756717056497,56.99159274,0.00013698,2]
[382711848,1756717057450,480.0,0.00013698,2]
[382711849,1756717057913,480.0,0.00013698,2]
[382711850,1756717061918,535.04,0.00013698,2]
[382711851,1756717063930,480.0,0.00013698,2]
[382711852,1756717064544,480.0,0.00013698,2]
[382711853,1756717065164,1550.26,0.00013698,2]
[382711854,1756717070051,480.0,0.00013698,2]
[382711855,1756717071636,480.0,0.00013698,2]
[382711856,1756717073529,4289.41,0.00013698,2]
[382711857,1756717074184,1438.95,0.00013698,2]
[382711858,1756717074980,480.0,0.00013698,2]
[382711859,1756717075230,480.0,0.00013698,2]
[382711860,1756717076211,624.46,0.00013698,2]
[382711861,1756717076684,480.0,0.00013698,2]
[382711862,1756717077054,480.0,0.00013698,2]
[382711863,1756717078825,480.0,0.00013698,2]
[382711864,1756717081864,480.0,0.00013698,2]
[382711865,1756717082212,767.19,0.00013698,2]
[382711866,1756717082236,193.32,0.00013698,2]
[382711867,1756717082342,159.99477125,0.00013469,2]
[382711868,1756717082625,939.1,0.00013698,2]
[382711869,1756717083116,480.0,0.00013698,2]
[382711870,1756717083939,480.0,0.00013698,2]
[382711871,1756717085471,480.0,0.00013698,2]
[382711872,1756717088794,480.0,0.00013698,2]
[382711873,1756717091123,1031.56,0.00013698,2]
[382711874,1756717094434,328.78798777,0.00013698,2]
[382711875,1756717094868,486.86272866,0.00013698,2]
[382711876,1756717096674,484.68311449,0.00013698,2]
[382711877,1756717098910,481.35453299,0.00013698,2]
[382711878,1756717100711,480.0,0.00013698,2]
[382711879,1756717101330,480.0,0.00013698,2]
[382711880,1756717101447,480.0,0.00013698,2]
[382711881,1756717101615,483.25609583,0.00013698,2]
[382711882,1756717105034,480.0,0.00013698,2]
[382711883,1756717107124,480.0,0.00013698,2]
[382711884,1756717108253,480.0,0.00013698,2]
[382711885,1756717110380,480.0,0.00013698,2]
[382711886,1756717110635,131.09076901,0.00013698,2]
[382711887,1756717110656,540.54923099,0.00013698,2]
[382711888,1756717111401,503.04,0.00013698,2]
[382711889,1756717112258,480.0,0.00013698,2]
[382711890,1756717114885,480.0,0.00013698,2]
[382711892,1756717116965,1360.408985,0.00013699,2]
[382711893,1756717119043,480.0,0.00013698,2]
[382711894,1756717119187,6156.01178401,0.00012629,2]
[382711895,1756717119209,10000.01,0.00012629,2]
[382711896,1756717119231,10000.01,0.00012629,2]
[382711897,1756717119252,10000.01,0.00012629,2]
[382711898,1756717119275,10000.01,0.00012629,2]
[382711899,1756717119295,10000.01,0.00012629,2]
[382711900,1756717119314,10000.01,0.00012629,2]
[382711901,1756717119335,10000.01,0.00012629,2]
[382711904,1756717233475,-214.833959,0.00012128,2]
[382711905,1756717233509,-2763.3207094,0.0001225,2]
[382711906,1756717233546,-300.0,0.00012502,2]
[382711907,1756717233582,-300.0,0.00012502,2]
[382711908,1756717233616,-300.0,0.00012502,2]
[382711909,1756717233651,-300.0,0.00012502,2]
[382711910,1756717233688,-443.7006632,0.00012502,2]
[382711911,1756717245565,-756.2993368,0.00012502,2]
[382711912,1756717263994,-300.0,0.00012502,2]
[382711913,1756717264706,-3092.5266827,0.00012503,2]
[382711914,1756717291135,-1338.94232199,0.00012503,2]
[382711915,1756717291157,-7322.12535602,0.00012503,2]
[382711916,1756717291392,-500.0,0.00012628,2]
[382711917,1756717291423,-250.0,0.00012628,2]
[382711918,1756717291453,-500.0,0.00012628,2]
[382711919,1756717291482,-596.26142941,0.00012628,2]
[382711920,1756717291511,-500.0,0.00012628,2]
[382711921,1756717291542,-192.38300059,0.00012628,2]
[382711922,1756717291572,-500.0,0.00012628,2]
[382711923,1756717291602,-485.55521065,0.00012628,2]
[382711924,1756717291631,-500.0,0.00012628,2]
[382711925,1756717291661,-223.90225789,0.00012628,2]
[382711926,1756717291844,-1503.80620292,0.00012629,2]
[382711927,1756717291886,-10000.01,0.00012629,2]
[382711928,1756717310530,-10000.01,0.00012629,2]
[382711929,1756717310819,-10000.01,0.00012629,2]
[382711930,1756717311113,-10000.01,0.00012629,2]
[382711931,1756717334701,-159.99477124,0.00012293,2]
[382711932,1756717334734,-300.0,0.00012628,2]
[382711933,1756717334763,-1200.0,0.00012628,2]
[382711934,1756717334848,-6680.02045752,0.00012629,2]
[382711935,1756717527450,25126.4798197,0.00025,30]
[382711936,1756717596101,-159.99477124,0.0001111,2]
[382711937,1756717596124,-159.99477124,0.00011222,2]
[382711938,1756717596146,-168.46392776,0.00011242,2]
[382711939,1756717596167,-300.0,0.00011355,2]
[382711940,1756717596188,-8506.95734396,0.00011356,2]
[382711983,1756717835163,-159.99477125,0.0001014,2]
[382711984,1756717835172,-159.99477125,0.00010242,2]
[382711985,1756717835182,-159.99477125,0.00010777,2]
[382711986,1756717835192,-165.139229,0.00010957,2]
[382711987,1756717835201,-159.99477124,0.00011222,2]
[382711988,1756717835211,-1013.0,0.00011469,2]
[382711989,1756717835220,-2806.86471401,0.0001147,2]
[382711999,1756717838159,-7193.13528599,0.0001147,2]
[382712000,1756717838169,-300.0,0.000118,2]
[382712001,1756717838179,-300.0,0.000118,2]
[382712002,1756717838189,-300.0,0.000118,2]
[382712003,1756717838198,-300.0,0.000118,2]
[382712004,1756717838208,-300.0,0.000118,2]
[382712005,1756717838217,-300.0,0.000118,2]
[382712006,1756717838227,-300.0,0.000118,2]
[382712007,1756717838236,-300.0,0.000118,2]
[382712008,1756717838246,-300.0,0.000118,2]
[382712009,1756717838255,-300.0,0.000118,2]
[382712010,1756717838265,-300.0,0.000118,2]
[382712011,1756717838274,-300.0,0.000118,2]
[382712012,1756717838283,-300.0,0.000118,2]
[382712013,1756717838293,-300.0,0.000118,2]
[382712014,1756717838303,-300.0,0.000118,2]
[382712015,1756717838312,-250.0,0.000125,2]
[382712016,1756717838321,-5761.61135842,0.00012573,2]
[382712017,1756717838332,-500.0,0.00012628,2]
[382712018,1756717838341,-500.0,0.00012628,2]
[382712019,1756717838351,-262.00813826,0.00012628,2]
[382712020,1756717838360,-245660.05155555,0.00012629,2]
[382712021,1756717838369,-500.0,0.00012673,2]
[382712022,1756717838378,-500.0,0.00012673,2]
[382712037,1756717838387,-500.0,0.00012673,2]
[382712039,1756717838585,-500.0,0.00012673,2]
[382712041,1756717838594,-511.8682518,0.00012673,2]
[382712043,1756717838603,-500.0,0.00012673,2]
[382712045,1756717838612,-300.43414694,0.00012673,2]
[382712047,1756717838622,-500.0,0.00012673,2]
[382712048,1756717838631,-500.0,0.00012673,2]
[382712050,1756717838648,-404.10659018,0.00012673,2]
[382712052,1756717838657,-500.0,0.00012673,2]
[382712054,1756717838668,-500.0,0.00012673,2]
[382712056,1756717838682,-500.0,0.00012673,2]
[382712059,1756717838694,-500.0,0.00012673,2]
[382712060,1756717838704,-500.0,0.00012673,2]
[382712062,1756717838713,-116527.3967646,0.00012724,2]
[382712064,1756717838722,-600.0,0.00012881,2]
[382712066,1756717838731,-10510.83445041,0.000129,2]
[382712068,1756717838740,-5761.61135841,0.00012966,2]
[382712070,1756717838749,-1000.0,0.00013221,2]
[382712072,1756717838758,-1000.0,0.00013221,2]
[382712074,1756717838768,-1015.48207357,0.00013221,2]
[382712076,1756717838777,-1000.0,0.00013221,2]
[382712078,1756717838786,-1000.0,0.00013221,2]
[382712080,1756717838795,-1000.0,0.00013221,2]
[382712082,1756717838804,-1000.0,0.00013221,2]
[382712084,1756717838813,-1000.0,0.00013221,2]
[382712085,1756717838822,-1000.0,0.00013221,2]
[382712087,1756717838832,-1000.0,0.00013221,2]
[382712089,1756717838841,-1000.0,0.00013221,2]
[382712091,1756717838850,-1000.0,0.00013221,2]
[382712093,1756717838859,-500.0,0.00013221,2]
[382712095,1756717838868,-5761.61135841,0.0001336,2]
[382712097,1756717838877,-500.0,0.00013495,2]
[382712099,1756717838886,-561.29412836,0.00013563,2]
[382712101,1756717838896,-2245.17651345,0.00013563,2]
[382712103,1756717838905,-5046.5955081,0.00013563,2]
[382712105,1756717838914,-674.64408644,0.00013563,2]
[382712107,1756717838924,-2698.57634578,0.00013563,2]
[382712109,1756717838933,-6065.72498122,0.00013563,2]
[382712111,1756717838942,-1196.06,0.00013686,2]
[382712113,1756717838952,-228.12,0.00013686,2]
[382712115,1756717838961,-1000.0,0.00013693,2]
[382712117,1756717838970,-1000.0,0.00013693,2]
[382712118,1756717838979,-1000.0,0.00013693,2]
[382712120,1756717838988,-500.0,0.00013693,2]
[382712122,1756717838998,-500.0,0.00013693,2]
[382712124,1756717839008,-151.0,0.00013693,2]
[382712126,1756717839020,-209.40437684,0.00013693,2]
[382712128,1756717839030,-500.0,0.00013693,2]
[382712130,1756717839039,-151.0,0.00013693,2]
[382712132,1756717839048,-151.0,0.00013693,2]
[382712134,1756717839060,-500.0,0.00013693,2]
[382712136,1756717839069,-500.0,0.00013693,2]
[382712138,1756717839080,-151.0,0.00013693,2]
[382712140,1756717839091,-151.0,0.00013693,2]
[382712142,1756717839100,-500.0,0.00013693,2]
[382712144,1756717839109,-151.0,0.00013693,2]
[382712146,1756717839119,-151.0,0.00013693,2]
[382712148,1756717839128,-151.0,0.00013693,2]
[382712151,1756717839147,-151.0,0.00013693,2]
[382712153,1756717839156,-250.0,0.00013693,2]
[382712155,1756717839165,-151.0,0.00013693,2]
[382712157,1756717839174,-156.587,0.00013693,2]
[382712159,1756717839183,-151.0,0.00013693,2]
[382712161,1756717839193,-199.36998705,0.00013693,2]
[382712163,1756717839202,-250.0,0.00013693,2]
[382712165,1756717839211,-151.0,0.00013693,2]
[382712167,1756717839220,-250.0,0.00013693,2]
[382712169,1756717839229,-151.0,0.00013693,2]
[382712171,1756717839238,-250.0,0.00013693,2]
[382712173,1756717839248,-216.93662961,0.00013693,2]
[382712175,1756717839258,-262.89679858,0.00013693,2]
[382712177,1756717839267,-480.0,0.00013698,2]
[382712179,1756717839277,-480.0,0.00013698,2]
[382712181,1756717839286,-480.0,0.00013698,2]
[382712182,1756717839296,-480.0,0.00013698,2]
[382712185,1756717839306,-480.0,0.00013698,2]
[382712187,1756717839316,-480.0,0.00013698,2]
[382712189,1756717839326,-609.10892235,0.00013698,2]
[382712191,1756717839336,-480.0,0.00013698,2]
[382712193,1756717839346,-1141.16,0.00013698,2]
[382712195,1756717839355,-480.0,0.00013698,2]
[382712197,1756717839365,-480.0,0.00013698,2]
[382712199,1756717839374,-480.0,0.00013698,2]
[382712201,1756717839383,-295.55875626,0.00013698,2]
[382712202,1756717839393,-480.0,0.00013698,2]
[382712204,1756717839402,-463.39145523,0.00013698,2]
[382712206,1756717839411,-480.0,0.00013698,2]
[382712208,1756717839421,-942.63,0.00013698,2]
[382712210,1756717839430,-480.0,0.00013698,2]
[382712212,1756717839439,-480.0,0.00013698,2]
[382712214,1756717839448,-480.0,0.00013698,2]
[382712216,1756717839458,-480.0,0.00013698,2]
[382712218,1756717839467,-480.0,0.00013698,2]
[382712220,1756717839476,-480.0,0.00013698,2]
[382712222,1756717839485,-480.0,0.00013698,2]
[382712224,1756717839495,-480.0,0.00013698,2]
[382712226,1756717839504,-716.18,0.00013698,2]
[382712228,1756717839513,-480.0,0.00013698,2]
[382712230,1756717839522,-480.0,0.00013698,2]
[382712232,1756717839531,-480.0,0.00013698,2]
[382712234,1756717839540,-480.0,0.00013698,2]
[382712236,1756717839549,-480.0,0.00013698,2]
[382712238,1756717839558,-480.0,0.00013698,2]
[382712240,1756717839568,-480.0,0.00013698,2]
[382712242,1756717839578,-480.0,0.00013698,2]
[382712244,1756717839587,-157.4141734,0.00013698,2]
[382712246,1756717839597,-480.0,0.00013698,2]
[382712248,1756717839608,-480.0,0.00013698,2]
[382712250,1756717839620,-480.0,0.00013698,2]
[382712252,1756717839630,-630.15,0.00013698,2]
[382712254,1756717839640,-480.0,0.00013698,2]
[382712255,1756717839650,-480.0,0.00013698,2]
[382712257,1756717839659,-480.0,0.00013698,2]
[382712259,1756717839670,-480.0,0.00013698,2]
[382712261,1756717839680,-480.0,0.00013698,2]
[382712263,1756717839689,-480.0,0.00013698,2]
[382712265,1756717839698,-481.91405631,0.00013698,2]
[382712267,1756717839708,-480.0,0.00013698,2]
[382712269,1756717839717,-480.0,0.00013698,2]
[382712271,1756717839727,-480.0,0.00013698,2]
[382712273,1756717839736,-482.44762185,0.00013698,2]
[382712275,1756717839745,-480.0,0.00013698,2]
[382712277,1756717839754,-482.83445905,0.00013698,2]
[382712278,1756717839766,-480.0,0.00013698,2]
[382712280,1756717839775,-480.0,0.00013698,2]
[382712282,1756717839785,-602.58,0.00013698,2]
[382712284,1756717839794,-959.77,0.00013698,2]
[382712286,1756717839803,-480.0,0.00013698,2]
[382712288,1756717839813,-480.0,0.00013698,2]
[382712290,1756717839822,-480.0,0.00013698,2]
[382712292,1756717839831,-480.0,0.00013698,2]
[382712294,1756717839840,-480.0,0.00013698,2]
[382712297,1756717839849,-954.21,0.00013698,2]
[382712300,1756717839858,-480.0,0.00013698,2]
[382712303,1756717839868,-480.0,0.00013698,2]
[382712306,1756717839878,-480.0,0.00013698,2]
[382712309,1756717839887,-797.02,0.00013698,2]
[382712312,1756717839897,-483.3550606,0.00013698,2]
[382712315,1756717839907,-480.0,0.00013698,2]
[382712318,1756717839916,-519.92539704,0.00013698,2]
[382712322,1756717839926,-480.0,0.00013698,2]
[382712325,1756717839935,-425.35819495,0.00013698,2]
[382712328,1756717839945,-895.61,0.00013698,2]
[382712330,1756717839955,-935.58,0.00013698,2]
[382712333,1756717839965,-480.0,0.00013698,2]
[382712335,1756717839975,-492.66256254,0.00013698,2]
[382712337,1756717839984,-480.0,0.00013698,2]
[382712339,1756717839994,-480.0,0.00013698,2]
[382712341,1756717840005,-480.0,0.00013698,2]
[382712343,1756717840018,-270.98948673,0.00013698,2]
[382712345,1756717840028,-480.0,0.00013698,2]
[382712347,1756717840038,-480.0,0.00013698,2]
[382712349,1756717840050,-480.0,0.00013698,2]
[382712351,1756717840060,-480.0,0.00013698,2]
[382712354,1756717840071,-480.0,0.00013698,2]
[382712356,1756717840090,-480.0,0.00013698,2]
[382712358,1756717840100,-480.0,0.00013698,2]
[382712360,1756717840110,-480.0,0.00013698,2]
[382712362,1756717840121,-480.0,0.00013698,2]
[382712364,1756717840131,-500.83,0.00013698,2]
[382712366,1756717840141,-480.0,0.00013698,2]
[382712368,1756717840151,-480.0,0.00013698,2]
[382712370,1756717840161,-482.37365407,0.00013698,2]
[382712372,1756717840171,-480.0,0.00013698,2]
[382712374,1756717840181,-480.0,0.00013698,2]
[382712376,1756717840191,-776.62,0.00013698,2]
[382712378,1756717840201,-400.0,0.00013698,2]
[382712380,1756717840211,-480.0,0.00013698,2]
[382712382,1756717840221,-480.0,0.00013698,2]
[382712384,1756717840231,-787.96,0.00013698,2]
[382712386,1756717840242,-787.96,0.00013698,2]
[382712388,1756717840252,-480.0,0.00013698,2]
[382712390,1756717840263,-787.96,0.00013698,2]
[382712392,1756717840273,-787.96,0.00013698,2]
[382712394,1756717840283,-787.96,0.00013698,2]
[382712396,1756717840293,-787.96,0.00013698,2]
[382712398,1756717840303,-787.96,0.00013698,2]
[382712400,1756717840313,-787.96,0.00013698,2]
[382712402,1756717840323,-787.96,0.00013698,2]
[382712404,1756717840334,-530.38,0.00013698,2]
[382712406,1756717840344,-787.96,0.00013698,2]
[382712408,1756717840354,-787.96,0.00013698,2]
[382712410,1756717840364,-787.96,0.00013698,2]
[382712412,1756717840374,-787.96,0.00013698,2]
[382712414,1756717840384,-787.96,0.00013698,2]
[382712416,1756717840394,-787.96,0.00013698,2]
[382712418,1756717840403,-480.0,0.00013698,2]
[382712419,1756717840413,-480.0,0.00013698,2]
[382712421,1756717840424,-481.61529543,0.00013698,2]
[382712423,1756717840434,-480.0,0.00013698,2]
[382712426,1756717840444,-1000.0,0.00013698,2]
[382712429,1756717840454,-480.0,0.00013698,2]
[382712432,1756717840463,-480.0,0.00013698,2]
[382712435,1756717840473,-480.0,0.00013698,2]
[382712438,1756717840483,-480.0,0.00013698,2]
[382712441,1756717840493,-481.71332384,0.00013698,2]
[382712444,1756717840503,-731.33,0.00013698,2]
[382712447,1756717840513,-461.33591421,0.00013698,2]
[382712450,1756717840525,-480.0,0.00013698,2]
[382712455,1756717840539,-543.37975257,0.00013698,2]
[382712458,1756717840553,-480.0,0.00013698,2]
[382712463,1756717840567,-803.59,0.00013698,2]
[382712466,1756717840581,-480.0,0.00013698,2]
[382712469,1756717840592,-527.75,0.00013698,2]
[382712473,1756717840603,-516.47661945,0.00013698,2]
[382712476,1756717840617,-480.0,0.00013698,2]
[382712480,1756717840629,-512.71,0.00013698,2]
[382712482,1756717840641,-480.0,0.00013698,2]
[382712484,1756717840654,-480.0,0.00013698,2]
[382712486,1756717840668,-480.0,0.00013698,2]
[382712489,1756717840682,-480.0,0.00013698,2]
[382712491,1756717840695,-480.0,0.00013698,2]
[382712495,1756717840708,-480.0,0.00013698,2]
[382712498,1756717840721,-480.0,0.00013698,2]
[382712502,1756717840734,-480.0,0.00013698,2]
[382712506,1756717840747,-833.45,0.00013698,2]
[382712509,1756717840758,-480.0,0.00013698,2]
[382712511,1756717840771,-480.0,0.00013698,2]
[382712513,1756717840783,-480.0,0.00013698,2]
[382712516,1756717840796,-496.81,0.00013698,2]
[382712518,1756717840808,-480.0,0.00013698,2]
[382712520,1756717840822,-947.72,0.00013698,2]
[382712522,1756717840835,-480.0,0.00013698,2]
[382712525,1756717840847,-480.0,0.00013698,2]
[382712527,1756717840859,-864.63,0.00013698,2]
[382712529,1756717840871,-480.0,0.00013698,2]
[382712531,1756717840882,-480.0,0.00013698,2]
[382712533,1756717840895,-480.0,0.00013698,2]
[382712535,1756717840907,-500.0,0.00013698,2]
[382712538,1756717840920,-500.0,0.00013698,2]
[382712540,1756717840937,-500.0,0.00013698,2]
[382712542,1756717840950,-500.0,0.00013698,2]
[382712543,1756717840962,-500.0,0.00013698,2]
[382712544,1756717840975,-500.0,0.00013698,2]
[382712545,1756717840988,-500.0,0.00013698,2]
[382712546,1756717841002,-500.0,0.00013698,2]
[382712547,1756717841017,-539.63262941,0.00013698,2]
[382712548,1756717841032,-166.99133856,0.00013698,2]
[382712549,1756717841044,-480.0,0.00013698,2]
[382712550,1756717841055,-480.0,0.00013698,2]
[382712551,1756717841065,-481.4460075,0.00013698,2]
[382712552,1756717841076,-480.0,0.00013698,2]
[382712554,1756717841090,-480.0,0.00013698,2]
[382712557,1756717841104,-480.0,0.00013698,2]
[382712559,1756717841117,-480.0,0.00013698,2]
[382712561,1756717841131,-480.0,0.00013698,2]
[382712563,1756717841142,-480.0,0.00013698,2]
[382712566,1756717841154,-480.0,0.00013698,2]
[382712568,1756717841166,-480.0,0.00013698,2]
[382712570,1756717841178,-480.0,0.00013698,2]
[382712572,1756717841190,-800.95,0.00013698,2]
[382712574,1756717841202,-442.64360987,0.00013698,2]
[382712576,1756717841214,-480.0,0.00013698,2]
[382712578,1756717841226,-480.0,0.00013698,2]
[382712581,1756717841237,-480.0,0.00013698,2]
[382712583,1756717841249,-480.0,0.00013698,2]
[382712585,1756717841260,-481.86328089,0.00013698,2]
[382712587,1756717841272,-871.62,0.00013698,2]
[382712589,1756717841284,-480.0,0.00013698,2]
[382712591,1756717841295,-480.0,0.00013698,2]
[382712593,1756717841307,-482.5624001,0.00013698,2]
[382712596,1756717841318,-481.49182011,0.00013698,2]
[382712598,1756717841329,-480.0,0.00013698,2]
[382712600,1756717841341,-480.0,0.00013698,2]
[382712602,1756717841353,-480.0,0.00013698,2]
[382712604,1756717841365,-480.0,0.00013698,2]
[382712606,1756717841377,-675.63,0.00013698,2]
[382712608,1756717841388,-480.0,0.00013698,2]
[382712611,1756717841402,-480.0,0.00013698,2]
[382712613,1756717841414,-480.0,0.00013698,2]
[382712615,1756717841425,-480.0,0.00013698,2]
[382712617,1756717841438,-480.0,0.00013698,2]
[382712619,1756717841450,-298.92234113,0.00013698,2]
[382712621,1756717841462,-480.0,0.00013698,2]
[382712624,1756717841474,-480.0,0.00013698,2]
[382712626,1756717841486,-480.0,0.00013698,2]
[382712628,1756717841498,-480.0,0.00013698,2]
[382712630,1756717841510,-480.0,0.00013698,2]
[382712632,1756717841521,-834.54,0.00013698,2]
[382712634,1756717841533,-513.92,0.00013698,2]
[382712637,1756717841546,-480.0,0.00013698,2]
[382712639,1756717841557,-480.0,0.00013698,2]
[382712641,1756717841569,-480.42453521,0.00013698,2]
[382712643,1756717841580,-544.34,0.00013698,2]
[382712645,1756717841592,-480.0,0.00013698,2]
[382712647,1756717841602,-480.0,0.00013698,2]
[382712649,1756717841614,-480.0,0.00013698,2]
[382712651,1756717841625,-480.0,0.00013698,2]
[382712654,1756717841636,-669.48,0.00013698,2]
[382712656,1756717841647,-481.58686679,0.00013698,2]
[382712658,1756717841659,-480.0,0.00013698,2]
[382712660,1756717841670,-1011.4,0.00013698,2]
[382712662,1756717841682,-1201.58,0.00013698,2]
[382712664,1756717841694,-480.0,0.00013698,2]
[382712666,1756717841705,-480.0,0.00013698,2]
[382712669,1756717841718,-480.0,0.00013698,2]
[382712671,1756717841730,-481.86596231,0.00013698,2]
[382712673,1756717841741,-480.0,0.00013698,2]
[382712675,1756717841753,-795.38,0.00013698,2]
[382712677,1756717841765,-480.0,0.00013698,2]
[382712680,1756717841777,-480.0,0.00013698,2]
[382712682,1756717841789,-713.66,0.00013698,2]
[382712684,1756717841800,-1008.21,0.00013698,2]
[382712686,1756717841811,-1270.37,0.00013698,2]
[382712688,1756717841823,-620.19,0.00013698,2]
[382712690,1756717841835,-480.0,0.00013698,2]
[382712692,1756717841847,-480.0,0.00013698,2]
[382712694,1756717841858,-480.0,0.00013698,2]
[382712697,1756717841872,-2966.11,0.00013698,2]
[382712699,1756717841883,-1042.18,0.00013698,2]
[382712701,1756717841896,-480.0,0.00013698,2]
[382712703,1756717841907,-480.0,0.00013698,2]
[382712705,1756717841918,-480.0,0.00013698,2]
[382712707,1756717841930,-481.53332325,0.00013698,2]
[382712710,1756717841941,-1154.03,0.00013698,2]
[382712712,1756717841952,-481.97077615,0.00013698,2]
[382712714,1756717841964,-481.46191792,0.00013698,2]
[382712716,1756717841975,-480.0,0.00013698,2]
[382712718,1756717841986,-627.58,0.00013698,2]
[382712720,1756717841997,-481.50359992,0.00013698,2]
[382712722,1756717842012,-483.77911761,0.00013698,2]
[382712724,1756717842025,-421.78350037,0.00013698,2]
[382712726,1756717842036,-480.0,0.00013698,2]
[382712729,1756717842048,-480.0,0.00013698,2]
[382712731,1756717842060,-480.0,0.00013698,2]
[382712733,1756717842073,-480.0,0.00013698,2]
[382712735,1756717842084,-550.57,0.00013698,2]
[382712737,1756717842097,-481.45661081,0.00013698,2]
[382712740,1756717842109,-480.0,0.00013698,2]
[382712742,1756717842120,-480.0,0.00013698,2]
[382712744,1756717842131,-480.0,0.00013698,2]
[382712746,1756717842144,-480.0,0.00013698,2]
[382712748,1756717842157,-480.0,0.00013698,2]
[382712751,1756717842169,-480.0,0.00013698,2]
[382712753,1756717842181,-653.62,0.00013698,2]
[382712755,1756717842192,-480.0,0.00013698,2]
[382712757,1756717842204,-2077.83,0.00013698,2]
[382712759,1756717842215,-481.40511799,0.00013698,2]
[382712761,1756717842229,-480.0,0.00013698,2]
[382712763,1756717842241,-579.63703457,0.00013698,2]
[382712765,1756717842253,-480.0,0.00013698,2]
[382712768,1756717842265,-480.0,0.00013698,2]
[382712770,1756717842277,-762.85,0.00013698,2]
[382712772,1756717842289,-480.0,0.00013698,2]
[382712774,1756717842300,-484.62069244,0.00013698,2]
[382712776,1756717842311,-508.74794958,0.00013698,2]
[382712778,1756717842324,-796.89,0.00013698,2]
[382712780,1756717842337,-480.0,0.00013698,2]
[382712783,1756717842349,-480.0,0.00013698,2]
[382712785,1756717842360,-480.0,0.00013698,2]
[382712787,1756717842371,-480.0,0.00013698,2]
[382712789,1756717842383,-480.0,0.00013698,2]
[382712791,1756717842395,-483.7942138,0.00013698,2]
[382712793,1756717842407,-480.0,0.00013698,2]
[382712795,1756717842419,-480.0,0.00013698,2]
[382712798,1756717842431,-480.0,0.00013698,2]
[382712800,1756717842443,-480.0,0.00013698,2]
[382712802,1756717842455,-480.0,0.00013698,2]
[382712804,1756717842467,-480.0,0.00013698,2]
[382712806,1756717842480,-622.06,0.00013698,2]
[382712808,1756717842491,-482.75407497,0.00013698,2]
[382712810,1756717842504,-480.0,0.00013698,2]
[382712812,1756717842515,-766.28,0.00013698,2]
[382712815,1756717842527,-480.0,0.00013698,2]
[382712817,1756717842540,-486.23,0.00013698,2]
[382712819,1756717842552,-1643.89,0.00013698,2]
[382712821,1756717842564,-567.03920444,0.00013698,2]